bitfinex/quotes_SOLUSD_20240824
["timestamp","ask_amount","ask_price","bid_price","bid_amount"]
[1724504260461,24.53677083,157.63,157.51,16.5795]
[1724504260663,24.53677083,157.63,157.53,9.92931159]
[1724504260858,24.53677083,157.63,157.54,65.12549]
[1724504261461,22.9505,157.63,157.55,9.92931159]
[1724504261664,24.53675886,157.63,157.56,65.0]
[1724504262185,24.53675886,157.63,157.56,20.0]
[1724504262488,24.53675886,157.63,157.53,9.92931159]
[1724504262787,9.92931159,157.62,157.54,20.0]
[1724504262987,1.58649222,157.61,157.54,20.0]
[1724504263188,9.92931159,157.62,157.52,20.0]
[1724504263189,1.58655403,157.6,157.52,20.0]
[1724504263684,1.58655403,157.6,157.53,45.0]
[1724504263889,1.58655403,157.6,157.54,20.0]
[1724504264088,11.51586562,157.6,157.54,20.0]
[1724504264478,11.51586562,157.6,157.52,20.0]
[1724504265963,1.5866508,157.62,157.52,20.0]
[1724504266174,1.5866508,157.62,157.53,45.25098]
[1724504266377,1.5866508,157.62,157.54,20.0]
[1724504268173,1.5866508,157.62,157.46,9.92931159]
[1724504268174,6.461,157.58,157.46,9.92931159]
[1724504268358,11.51623781,157.57,157.48,9.92931159]
[1724504268859,6.461,157.58,157.48,9.92931159]
[1724504269062,6.461,157.58,157.5,9.92931159]
[1724504269577,6.461,157.58,157.52,9.92931159]
[1724504269879,6.461,157.58,157.53,45.12549]
[1724504270057,6.461,157.58,157.54,9.92931159]
[1724504270471,6.344,157.63,157.54,9.92931159]
[1724504270787,28.2491,157.64,157.55,0.63576414]
[1724504271567,6.344,157.63,157.55,0.63576414]
[1724504271772,1.5864007,157.62,157.54,9.92931159]
[1724504272560,1.5864007,157.62,157.53,45.25098]
[1724504272759,1.5864007,157.62,157.54,20.12549]
[1724504273270,21.5864007,157.62,157.54,20.12549]
[1724504273679,20.0,157.62,157.54,20.12549]
[1724504274582,20.0,157.62,157.55,0.63569425]
[1724504275261,20.0,157.62,157.54,20.12549]
[1724504277286,20.0,157.62,157.55,45.0]
[1724504278475,20.0,157.63,157.56,0.25098]
[1724504279774,1.5861836,157.62,157.55,45.0]
[1724504281113,1.5861836,157.62,157.54,20.0]
[1724504281412,1.5861836,157.62,157.53,20.12549]
[1724504281593,1.5861836,157.62,157.54,45.12549]
[1724504282380,21.58638448,157.63,157.54,45.12549]
[1724504283186,20.0,157.63,157.55,20.76105497]
[1724504283372,20.0,157.63,157.56,45.12549]
[1724504283574,20.0,157.63,157.57,0.63516012]
[1724504283776,21.9055,157.64,157.57,0.63516012]
[1724504284274,21.9055,157.64,157.57,20.0]
[1724504284478,21.9055,157.64,157.58,45.0]
[1724504284686,21.9055,157.64,157.57,20.0]
[1724504284881,23.49179184,157.64,157.55,20.0]
[1724504286074,23.49179184,157.64,157.54,0.12549]
[1724504286374,20.0,157.63,157.53,65.25098]
[1724504286697,1.58638508,157.62,157.53,65.25098]
[1724504287671,6.3449,157.61,157.54,0.63565295]
[1724504288590,7.93202071,157.6,157.51,20.0]
[1724504288792,7.93202071,157.6,157.48,39.93798381]
[1724504288793,6.3456,157.59,157.48,39.93798381]
[1724504289098,6.4203,157.57,157.48,15.1614]
[1724504289286,32.78371608,157.57,157.46,24.77658381]
[1724504290783,8.00713227,157.57,157.47,65.25098]
[1724504290982,6.4203,157.57,157.47,65.25098]
[1724504292491,8.00724958,157.57,157.48,9.91722082]
[1724504292674,6.4203,157.57,157.49,65.63700437]
[1724504292874,6.4203,157.57,157.5,10.16820082]
[1724504293081,6.4203,157.57,157.51,65.0]
[1724504293505,6.4203,157.57,157.52,0.25098]
[1724504297176,6.4203,157.57,157.51,45.0]
[1724504297387,6.4203,157.57,157.5,45.0]
[1724504297682,6.4203,157.57,157.5,65.0]
[1724504301574,6.4203,157.57,157.51,0.88754351]
[1724504301775,15.7821,157.58,157.52,0.63620941]
[1724504301991,15.7821,157.58,157.52,65.63620941]
[1724504302404,15.7821,157.58,157.53,0.25098]
[1724504305802,6.4203,157.61,157.53,25.67203828]
[1724504306006,6.4203,157.61,157.54,65.0]
[1724504306197,6.4203,157.61,157.55,0.88637876]
[1724504306398,6.4203,157.61,157.55,0.25098]
[1724504307815,6.4203,157.61,157.55,0.88640972]
[1724504309022,6.4203,157.61,157.55,0.8863944]
[1724504309426,6.4203,157.61,157.56,0.63519415]
[1724504310321,6.4203,157.61,157.54,65.0]
[1724504310529,8.00649431,157.61,157.54,20.0]
[1724504310742,6.4203,157.61,157.51,20.0]
[1724504310905,6.4203,157.61,157.52,45.25098]
[1724504311106,6.4203,157.61,157.53,20.63581949]
[1724504311408,6.4203,157.61,157.54,45.25098]
[1724504311612,6.4203,157.61,157.55,20.0]
[1724504312129,6.4203,157.61,157.56,0.63549509]
[1724504312937,6.4203,157.61,157.57,0.63524778]
[1724504313145,6.4203,157.61,157.56,45.12549]
[1724504313307,6.4203,157.61,157.57,0.25098]
[1724504313634,6.4203,157.61,157.57,0.88601488]
[1724504314836,6.4203,157.61,157.57,0.25098]
[1724504325055,16.2691,157.62,157.57,0.25098]
[1724504325247,16.2691,157.62,157.57,10.1578543]
[1724504325738,16.2691,157.62,157.58,0.63501921]
[1724504327255,16.2691,157.62,157.57,0.25098]
[1724504336968,16.2691,157.62,157.56,45.0]
[1724504337264,26.1759743,157.62,157.55,20.0]
[1724504337474,26.1759743,157.62,157.54,20.0]
[1724504337847,26.1759743,157.62,157.55,0.63573882]
[1724504339177,26.1759743,157.62,157.54,20.0]
[1724504341365,16.2691,157.62,157.55,54.9068743]
[1724504341570,16.2691,157.62,157.56,20.25098]
[1724504341882,16.2691,157.62,157.57,45.0]
[1724504342054,16.2691,157.62,157.58,0.63502707]
[1724504343060,16.2691,157.62,157.57,45.0]
[1724504345280,16.2691,157.62,157.52,42.63920568]
[1724504345459,16.2691,157.62,157.54,9.9068743]
[1724504345783,16.2691,157.62,157.55,45.25098]
[1724504353078,16.2691,157.62,157.56,0.63549509]
[1724504353289,16.2691,157.62,157.57,0.25098]
[1724504353461,16.2691,157.62,157.58,9.9068743]
[1724504353665,16.2691,157.62,157.59,45.63482113]
[1724504354992,6.4276,157.64,157.6,0.63479571]
[1724504355184,15.0418,157.66,157.61,0.12549]
[1724504355519,15.0418,157.66,157.61,0.7595777]
[1724504355810,15.0418,157.66,157.61,45.7595777]
[1724504358983,15.0418,157.66,157.61,45.12549]
[1724504360807,15.0418,157.66,157.59,0.12549]
[1724504360983,15.0418,157.66,157.6,0.12549]
[1724504361298,15.0418,157.66,157.6,0.25098]
[1724504362174,15.0418,157.66,157.59,65.0]
[1724504362377,1.58594168,157.65,157.59,65.0]
[1724504363185,15.0418,157.66,157.59,65.0]
[1724504363379,15.0418,157.66,157.6,0.25098]
[1724504366195,15.0418,157.66,157.6,0.88518682]
[1724504366403,15.0418,157.66,157.6,0.25098]
[1724504369010,13.0418,157.66,157.6,0.25098]
[1724504377719,13.0418,157.66,157.6,0.88519779]
[1724504378901,13.0418,157.66,157.6,0.25098]
[1724504382421,13.0418,157.66,157.59,20.0]
[1724504382422,17.92046398,157.65,157.59,20.0]
[1724504382623,16.3346743,157.65,157.56,20.0]
[1724504382821,16.3346743,157.65,157.6,20.0]
[1724504383214,16.3346743,157.65,157.56,20.0]
[1724504383920,16.3346743,157.65,157.57,0.63499295]
[1724504384120,17.92078521,157.65,157.56,20.0]
[1724504384304,1.58611302,157.64,157.55,9.9068743]
[1724504384507,9.9068743,157.63,157.55,9.9068743]
[1724504384817,9.9068743,157.63,157.56,45.0]
[1724504386219,9.9068743,157.63,157.57,20.0]
[1724504389828,15.2454,157.61,157.57,20.0]
[1724504390029,15.2454,157.61,157.56,20.0]
[1724504393511,15.2454,157.61,157.54,20.12549]
[1724504393841,6.5711,157.6,157.54,20.12549]
[1724504394630,8.15755034,157.6,157.52,9.71054223]
[1724504394805,9.9068743,157.59,157.5,9.9068743]
[1724504395332,8.15755034,157.6,157.5,9.9068743]
[1724504396048,8.15755034,157.6,157.51,65.25098]
[1724504396908,8.15755034,157.6,157.51,75.1578543]
[1724504398136,8.15755034,157.6,157.52,0.6363593]
[1724504398137,6.5711,157.6,157.52,0.6363593]
[1724504399725,6.5711,157.6,157.51,75.1578543]
[1724504400709,6.5711,157.6,157.52,0.63636423]
[1724504401032,8.15778119,157.6,157.51,75.1578543]
[1724504401226,6.5711,157.6,157.53,9.9068743]
[1724504401431,6.5711,157.6,157.54,45.76136805]
[1724504401731,6.5711,157.6,157.54,45.12549]
[1724504404514,6.5711,157.6,157.55,30.0323643]
[1724504404813,6.5711,157.6,157.56,45.0]
[1724504406746,6.5711,157.6,157.55,20.12549]
[1724504406932,6.5711,157.6,157.54,0.12549]
[1724504407240,6.5711,157.6,157.54,65.25098]
[1724504413037,15.2454,157.61,157.57,9.9068743]
[1724504413213,15.2454,157.61,157.58,45.63509639]
[1724504414111,6.5407,157.64,157.59,0.25098]
[1724504414313,6.5407,157.64,157.59,20.88558222]
[1724504414718,6.5407,157.64,157.6,45.0]
[1724504415343,6.5407,157.64,157.61,0.63431647]
[1724504415512,15.13,157.65,157.61,20.63431647]
[1724504415926,15.13,157.65,157.62,0.12549]
[1724504416240,15.13,157.65,157.62,45.25098]
[1724504417120,6.5407,157.68,157.62,45.25098]
[1724504417325,6.5407,157.68,157.63,10.54067342]
[1724504417841,6.5407,157.68,157.64,65.0]
[1724504418050,6.5407,157.68,157.65,0.63356373]
[1724504418343,15.13,157.69,157.65,0.63356373]
[1724504418734,15.13,157.69,157.65,10.54043803]
[1724504419547,15.13,157.69,157.64,65.12549]
[1724504419748,15.13,157.69,157.65,0.25098]
[1724504419930,15.13,157.69,157.65,0.88420658]
[1724504420542,6.5407,157.72,157.65,10.79108088]
[1724504420821,6.5407,157.72,157.66,45.0]
[1724504421035,15.13,157.73,157.67,0.63299493]
[1724504421237,6.5407,157.76,157.69,9.9068743]
[1724504421543,8.12557305,157.76,157.7,45.0]
[1724504421720,8.12557305,157.76,157.67,30.0323643]
[1724504421921,8.12557305,157.76,157.68,45.12549]
[1724504422250,8.12557305,157.76,157.69,20.12549]
[1724504422746,8.12557305,157.76,157.7,45.0]
[1724504422747,6.5407,157.76,157.7,45.0]
[1724504422960,6.5407,157.76,157.71,20.25098]
[1724504423250,6.5407,157.76,157.72,45.0]
[1724504424039,15.9890117,157.77,157.72,45.0]
[1724504427745,15.9890117,157.77,157.71,0.25098]
[1724504427925,17.57383534,157.77,157.7,65.25098]
[1724504428346,1.58482424,157.76,157.7,20.0]
[1724504428727,17.57383614,157.77,157.7,20.0]
[1724504429124,15.9890117,157.77,157.7,20.0]
[1724504429653,15.9890117,157.77,157.71,45.25098]
[1724504433163,15.9890117,157.77,157.71,55.1578543]
[1724504435046,15.9890117,157.77,157.72,20.0]
[1724504435253,15.9890117,157.77,157.73,45.25098]
[1724504442063,15.9890117,157.77,157.73,0.25098]
[1724504446353,25.895886,157.77,157.73,0.25098]
[1724504447045,25.895886,157.77,157.73,0.12549]
[1724504447246,25.895886,157.77,157.72,45.0]
[1724504449481,15.9890117,157.77,157.72,45.0]
[1724504455052,15.9890117,157.77,157.73,0.25098]
[1724504461467,0.8590117,157.77,157.73,10.1578543]
[1724504461682,0.8590117,157.77,157.74,65.0]
[1724504462585,0.8590117,157.77,157.75,0.63097046]
[1724504464970,0.8590117,157.77,157.74,65.0]
[1724504465176,21.5005,157.76,157.7,3.02704617]
[1724504465490,9.9068743,157.71,157.62,25.2178743]
[1724504465681,9.9068743,157.71,157.62,412.1178743]
[1724504467390,9.9068743,157.69,157.58,23.28755253]
[1724504467592,24.56246165,157.7,157.58,26.5648743]
[1724504467593,9.9068743,157.67,157.58,26.5648743]
[1724504467781,22.9771,157.7,157.58,26.5648743]
[1724504467973,11.49249523,157.69,157.58,26.5648743]
[1724504468301,32.8839743,157.7,157.6,9.9068743]
[1724504468776,32.8839743,157.7,157.61,45.0]
[1724504468979,32.8839743,157.7,157.62,0.25098]
[1724504469914,32.8839743,157.7,157.63,7.93867765]
[1724504470074,32.8839743,157.7,157.64,45.75894612]
[1724504470275,32.8839743,157.7,157.65,0.63345612]
[1724504471277,32.8839743,157.7,157.64,45.12549]
[1724504471486,22.9771,157.7,157.64,45.12549]
[1724504471699,22.9771,157.7,157.65,45.12549]
[1724504471867,22.9771,157.7,157.65,0.12549]
[1724504472475,22.9771,157.7,157.64,0.25098]
[1724504472993,22.9771,157.7,157.64,0.8841077]
[1724504473401,22.9771,157.7,157.64,8.82161675]
[1724504473586,22.9771,157.7,157.65,45.0]
[1724504473788,22.9771,157.7,157.66,0.75849937]
[1724504474304,22.9771,157.7,157.66,0.12549]
[1724504474476,22.9771,157.7,157.66,0.75849995]
[1724504476787,6.5183,157.7,157.66,0.75849995]
[1724504476997,22.9771,157.74,157.66,0.12549]
[1724504477205,32.8839743,157.74,157.66,0.25098]
[1724504477984,32.8839743,157.74,157.66,0.88352464]
[1724504479176,22.9771,157.74,157.66,20.88352464]
[1724504479377,22.9771,157.74,157.67,45.0]
[1724504479595,22.9771,157.74,157.68,0.88329073]
[1724504480107,22.9771,157.74,157.68,10.1578543]
[1724504480277,22.9771,157.74,157.69,45.0]
[1724504480479,22.9771,157.74,157.7,0.25098]
[1724504480671,22.9771,157.74,157.7,0.12549]
[1724504481078,22.9771,157.74,157.69,45.0]
[1724504481787,24.56209895,157.74,157.69,45.0]
[1724504483126,24.56209895,157.74,157.62,12.9593591]
[1724504483127,11.49200349,157.73,157.62,12.9593591]
[1724504483423,11.49200349,157.73,157.63,7.93632297]
[1724504483596,11.49200349,157.73,157.64,27.93632297]
[1724504483797,11.49200349,157.73,157.65,7.93632297]
[1724504484119,11.49200349,157.73,157.66,0.25098]
[1724504484309,9.9068743,157.73,157.66,45.25098]
[1724504484825,9.9068743,157.73,157.67,45.0]
[1724504485015,9.9068743,157.73,157.66,0.25098]
[1724504485326,9.9068743,157.73,157.66,8.18749985]
[1724504485512,11.49211357,157.73,157.67,45.0]
[1724504486907,22.9771,157.74,157.68,0.63311786]
[1724504487105,22.9771,157.74,157.67,45.0]
[1724504488905,22.9771,157.74,157.68,0.63275835]
[1724504490118,22.9771,157.74,157.68,0.63268415]
[1724504491309,22.9771,157.74,157.67,45.12549]
[1724504491625,22.9771,157.74,157.68,0.25098]
[1724504497432,22.9771,157.74,157.68,8.18663032]
[1724504497618,22.9771,157.74,157.69,45.0]
[1724504498022,22.9771,157.74,157.68,45.8833878]
[1724504498535,22.9771,157.74,157.64,20.0]
[1724504498536,1.58502344,157.73,157.64,20.0]
[1724504498832,1.58502344,157.73,157.65,27.93647692]
[1724504499019,1.58502344,157.73,157.65,9.9068743]
[1724504499215,1.58502344,157.73,157.66,20.0]
[1724504499840,1.58502344,157.73,157.67,45.12549]
[1724504502235,24.56230547,157.74,157.67,45.12549]
[1724504502452,22.9771,157.74,157.68,0.63261749]
[1724504503242,22.9771,157.74,157.69,0.75785798]
[1724504503452,22.9771,157.74,157.67,55.1578543]
[1724504503453,22.9771,157.74,157.68,7.93573765]
[1724504503652,22.9771,157.74,157.69,55.0323643]
[1724504504928,22.9771,157.74,157.69,45.12549]
[1724504505134,22.9771,157.74,157.69,0.12549]
[1724504506749,22.9771,157.74,157.68,45.0]
[1724504506951,22.9771,157.74,157.66,20.0]
[1724504507241,22.9771,157.74,157.61,26.62809285]
[1724504507242,1.58510505,157.73,157.64,9.9068743]
[1724504507454,1.58510505,157.73,157.65,20.0]
[1724504508843,1.58510505,157.73,157.66,45.0]
[1724504509153,1.58510505,157.73,157.67,0.12549]
[1724504522059,22.9771,157.74,157.68,9.9068743]
[1724504522268,22.9771,157.74,157.7,9.9068743]
[1724504522440,22.9771,157.74,157.71,0.63213737]
[1724504522641,22.9771,157.74,157.71,45.0]
[1724504523062,22.9771,157.74,157.72,0.63208145]
[1724504523372,22.9771,157.74,157.71,45.0]
[1724504524354,22.9771,157.74,157.72,0.63210673]
[1724504524963,0.8590117,157.77,157.72,10.53889289]
[1724504525153,0.8590117,157.77,157.73,45.0]
[1724504527346,0.8590117,157.77,157.68,12.97428647]
[1724504527347,2.44378925,157.77,157.68,12.97428647]
[1724504527680,2.44378925,157.77,157.69,65.25098]
[1724504529969,2.44378925,157.77,157.7,9.9068743]
[1724504530167,2.44378925,157.77,157.71,45.12549]
[1724504532040,21.1004,157.76,157.63,24.61407551]
[1724504532248,9.9068743,157.74,157.65,9.9068743]
[1724504532481,1.58515175,157.75,157.65,9.9068743]
[1724504532718,31.0072743,157.76,157.66,0.63259722]
[1724504533875,31.0072743,157.76,157.67,0.25098]
[1724504535887,31.0072743,157.76,157.68,0.63253462]
[1724504536210,32.59235905,157.76,157.67,0.25098]
[1724504542674,9.9068743,157.74,157.67,0.25098]
[1724504543009,1.58513028,157.73,157.67,0.25098]
[1724504545701,1.58513028,157.73,157.66,45.0]
[1724504545911,32.2736743,157.72,157.66,45.0]
[1724504546214,9.9068743,157.7,157.6,26.3170743]
[1724504546404,1.58560958,157.69,157.6,26.3170743]
[1724504546580,1.58560958,157.69,157.6,9.9068743]
[1724504546787,16.1738,157.66,157.59,6.59402644]
[1724504546981,16.1738,157.66,157.58,9.9068743]
[1724504546982,17.75964658,157.66,157.58,9.9068743]
[1724504547175,27.66652088,157.66,157.58,9.9068743]
[1724504548709,27.66652088,157.66,157.59,20.0]
[1724504548892,27.66652088,157.66,157.57,20.0]
[1724504549798,27.66652088,157.66,157.56,640.7]
[1724504550003,9.9068743,157.6,157.48,19.55612528]
[1724504550191,1.58672431,157.59,157.51,9.9068743]
[1724504550398,6.6348,157.58,157.51,9.9068743]
[1724504550907,6.6348,157.58,157.48,22.84524407]
[1724504551206,16.0125,157.57,157.49,9.9068743]
[1724504552095,16.0125,157.57,157.5,0.12549]
[1724504552300,16.0125,157.57,157.5,45.12549]
[1724504552480,16.0125,157.57,157.48,6.60954407]
[1724504552907,16.0125,157.57,157.48,16.51641837]
[1724504553112,16.0125,157.57,157.49,20.0]
[1724504553622,17.59922651,157.57,157.5,0.12549]
[1724504553772,17.5992295,157.57,157.5,45.12549]
[1724504553979,17.5992295,157.57,157.51,0.12549]
[1724504555997,15.9106743,157.56,157.45,0.63662814]
[1724504556207,9.9068743,157.54,157.46,0.63754791]
[1724504556396,6.0038,157.56,157.49,9.9068743]
[1724504556596,7.59078825,157.56,157.49,9.9068743]
[1724504557598,7.59078825,157.56,157.5,45.0]
[1724504558192,6.0038,157.56,157.5,45.0]
[1724504558507,6.0038,157.56,157.51,10.54380091]
[1724504558805,6.0038,157.56,157.52,45.63666777]
[1724504558998,6.0038,157.56,157.52,45.0]
[1724504560885,6.0038,157.56,157.53,0.63649692]
[1724504563501,6.0038,157.56,157.53,0.63650155]
[1724504563693,6.0997,157.6,157.53,10.54315618]
[1724504563895,6.0997,157.6,157.54,45.0]
[1724504564121,7.68620725,157.6,157.54,45.0]
[1724504564504,17.59308155,157.6,157.54,45.0]
[1724504565590,9.9068743,157.58,157.44,15.4301]
[1724504565804,1.58702701,157.57,157.47,9.9068743]
[1724504565994,9.9068743,157.56,157.47,9.9068743]
[1724504566305,1.58716207,157.55,157.47,9.9068743]
[1724504567109,6.0997,157.54,157.48,45.6375278]
[1724504567323,6.0997,157.54,157.49,0.63752146]
[1724504567692,6.0997,157.54,157.48,45.0]
[1724504568226,15.8099,157.53,157.47,0.63752164]
[1724504568401,15.8099,157.53,157.46,9.9068743]
[1724504569309,15.8099,157.53,157.47,65.0]
[1724504572302,6.0997,157.54,157.48,9.9068743]
[1724504572512,6.0997,157.54,157.49,45.0]
[1724504573501,6.0997,157.54,157.48,45.0]
[1724504573811,6.0997,157.54,157.49,9.9068743]
[1724504574132,6.0997,157.54,157.5,45.12549]
[1724504574332,6.0997,157.54,157.48,45.0]
[1724504580811,6.0997,157.54,157.49,0.63737374]
[1724504581110,6.0997,157.54,157.48,45.0]
[1724504581925,6.0997,157.54,157.49,9.9068743]
[1724504582135,6.0997,157.54,157.5,45.0]
[1724504582504,6.6173,157.59,157.53,9.9068743]
[1724504582701,6.6173,157.59,157.54,45.63633048]
[1724504583125,6.6173,157.59,157.55,0.63633206]
[1724504583532,6.6173,157.59,157.54,45.0]
[1724504583906,15.3923,157.6,157.55,10.66814041]
[1724504584110,6.6173,157.63,157.57,9.9068743]
[1724504584317,6.6173,157.63,157.58,0.63536151]
[1724504584537,6.6173,157.63,157.58,45.0]
[1724504584735,1.58616807,157.62,157.58,45.0]
[1724504585433,1.58616807,157.62,157.55,10.0323643]
[1724504585611,8.20363685,157.63,157.56,65.0]
[1724504586006,18.11051115,157.63,157.56,65.0]
[1724504586448,8.20363685,157.63,157.56,65.0]
[1724504586740,6.6173,157.63,157.56,65.0]
[1724504586930,8.20365146,157.63,157.56,65.0]
[1724504588249,8.20365146,157.63,157.56,45.0]
[1724504591606,8.20365146,157.63,157.55,45.0]
[1724504591826,18.11052576,157.63,157.55,45.0]
[1724504592242,18.11052576,157.63,157.54,9.9068743]
[1724504592446,18.11052576,157.63,157.55,20.0]
[1724504592816,18.11052576,157.63,157.54,9.9068743]
[1724504592817,15.0681,157.6,157.46,23.17557691]
[1724504593130,1.58676458,157.59,157.5,9.9068743]
[1724504593647,1.58676458,157.59,157.5,17.85032149]
[1724504593826,1.58676458,157.59,157.51,7.94344719]
[1724504594363,1.58676458,157.59,157.52,65.0]
[1724504595926,1.58676458,157.59,157.52,74.9068743]
[1724504596134,1.58676458,157.59,157.53,0.12549]
[1724504596452,1.58676458,157.59,157.54,9.9068743]
[1724504596941,15.0681,157.6,157.54,9.9068743]
[1724504597150,16.65474359,157.6,157.54,9.9068743]
[1724504597354,6.6173,157.63,157.56,9.9068743]
[1724504597850,6.6173,157.63,157.53,0.25098]
[1724504597851,6.6173,157.63,157.58,9.9068743]
[1724504598143,6.6173,157.63,157.59,0.63524393]
[1724504598345,6.6173,157.63,157.59,45.63524393]
[1724504598549,6.6173,157.63,157.6,9.9068743]
[1724504598754,6.3849,157.67,157.62,9.9068743]
[1724504599434,7.97081566,157.67,157.62,9.9068743]
[1724504599830,6.3849,157.67,157.62,9.9068743]
[1724504600025,9.9068743,157.72,157.64,9.9068743]
[1724504600225,7.97059508,157.71,157.62,9.9068743]
[1724504600457,11.49266229,157.7,157.61,45.12549]
[1724504600684,11.49266229,157.7,157.61,45.0]
[1724504601652,9.9068743,157.68,157.61,45.0]
[1724504601856,15.0681,157.66,157.55,16.5806]
[1724504602153,6.3849,157.64,157.57,9.9068743]
[1724504602351,1.58615828,157.63,157.58,65.0]
[1724504603862,6.3849,157.64,157.59,10.54196435]
[1724504604362,6.3849,157.64,157.59,9.9068743]
[1724504604562,6.3849,157.64,157.6,45.63479625]
[1724504605427,6.3849,157.64,157.6,45.0]
[1724504612266,15.0681,157.66,157.6,45.0]
[1724504612463,15.0681,157.66,157.61,9.9068743]
[1724504612762,6.4624,157.68,157.62,45.63414957]
[1724504612972,6.4624,157.68,157.63,9.9068743]
[1724504613159,6.4624,157.68,157.64,45.0]
[1724504614188,15.1086,157.7,157.65,9.9068743]
[1724504614498,6.4624,157.72,157.65,10.54039309]
[1724504615055,6.4624,157.72,157.65,10.54029156]
[1724504615268,6.4624,157.72,157.66,45.0]
[1724504615767,6.4624,157.72,157.67,10.54018432]
[1724504615974,6.4624,157.72,157.68,45.63282037]
[1724504616266,6.4624,157.72,157.68,45.0]
[1724504616483,1.5852512,157.71,157.64,9.9068743]
[1724504616773,1.5852512,157.71,157.65,65.0]
[1724504617344,1.5852512,157.71,157.61,16.1431]
[1724504617549,9.9068743,157.69,157.57,16.1431]
[1724504617751,1.58574694,157.69,157.62,9.9068743]
[1724504617959,6.4624,157.72,157.62,9.9068743]
[1724504617960,1.58566049,157.71,157.62,9.9068743]
[1724504618156,1.58561407,157.7,157.62,9.9068743]
[1724504618447,1.58562111,157.71,157.64,9.9068743]
[1724504618652,6.4624,157.72,157.65,0.63348637]
[1724504618969,6.4624,157.72,157.66,9.9068743]
[1724504619645,6.4624,157.72,157.67,0.63321598]
[1724504620854,6.4624,157.72,157.65,69.7356078]
[1724504623362,6.4624,157.72,157.66,20.0]
[1724504623561,6.4624,157.72,157.67,45.0]
[1724504625670,8.0476945,157.72,157.67,45.0]
[1724504626283,8.0476945,157.72,157.64,0.12549]
[1724504626473,8.0476945,157.72,157.64,65.12549]
[1724504628196,6.4624,157.72,157.65,0.12549]
[1724504628486,6.4624,157.72,157.65,0.25098]
[1724504628706,6.4624,157.72,157.65,0.12549]
[1724504629571,6.4624,157.72,157.65,0.25098]
[1724504629767,6.4624,157.72,157.65,0.88406014]
[1724504630183,6.4624,157.72,157.65,25.61966794]
[1724504630420,6.4624,157.72,157.66,45.0]
[1724504635497,6.4624,157.72,157.67,0.63309726]
[1724504635986,6.4624,157.72,157.67,20.63309726]
[1724504636188,6.4624,157.72,157.68,45.0]
[1724504636386,6.4624,157.72,157.69,0.63271522]
[1724504637413,6.4624,157.72,157.68,45.0]
[1724504637897,6.4624,157.72,157.67,20.0]
[1724504638205,6.4624,157.72,157.66,20.0]
[1724504638399,6.4624,157.72,157.67,45.63298154]
[1724504638603,6.4624,157.72,157.68,0.6329727]
[1724504639114,6.4624,157.72,157.67,45.0]
[1724504641496,6.4624,157.72,157.68,0.63287816]
[1724504641693,6.4624,157.72,157.67,45.0]
[1724504641896,1.58556114,157.71,157.6,2.94801391]
[1724504642203,1.58556328,157.7,157.6,24.7356078]
[1724504642524,9.90454643,157.68,157.58,9.90454643]
[1724504642721,1.58598893,157.67,157.58,9.90454643]
[1724504643012,6.5057,157.66,157.58,9.90454643]
[1724504643190,1.58611757,157.65,157.58,9.90454643]
[1724504643613,8.09181644,157.66,157.58,9.90454643]
[1724504644215,8.09181644,157.66,157.59,20.0]
[1724504649086,17.99636287,157.66,157.59,20.0]
[1724504649301,17.99636287,157.66,157.57,20.0]
[1724504649490,15.5299,157.65,157.56,20.0]
[1724504649718,1.58631666,157.64,157.55,9.90454643]
[1724504649992,11.49086309,157.64,157.56,20.0]
[1724504650614,9.90454643,157.62,157.51,25.72394643]
[1724504650819,1.58663317,157.61,157.51,25.72394643]
[1724504650997,1.58662119,157.6,157.51,25.72394643]
[1724504651316,1.58662119,157.6,157.53,9.90454643]
[1724504651511,1.58662123,157.61,157.53,9.90454643]
[1724504652219,1.58662123,157.61,157.54,65.0]
[1724504652541,1.58655075,157.6,157.54,65.0]
[1724504653018,1.58655059,157.62,157.54,65.0]
[1724504654012,8.10960173,157.63,157.55,9.90454643]